bitfinex-derivatives/quotes_ETHF0:USTF0_20251126
["timestamp","ask_amount","ask_price","bid_price","bid_amount"]
[1764170677416,2.63903503,2925.3,2924.2,0.4506]
[1764170678217,0.00513179,2925.0,2924.2,0.4506]
[1764170678816,2.63586102,2924.9,2924.2,0.4506]
[1764170679823,0.00513179,2925.0,2924.2,0.4506]
[1764170680120,0.17593179,2925.0,2924.2,0.4506]
[1764170680320,0.00513179,2925.0,2924.2,0.4506]
[1764170680516,2.63586102,2924.9,2924.2,0.4506]
[1764170680715,0.171,2924.7,2924.2,0.4506]
[1764170680921,0.17101,2924.6,2924.0,0.2923]
[1764170682023,0.4804,2924.1,2923.7,0.00377685]
[1764170682326,0.17101,2924.6,2923.7,0.00377685]
[1764170683624,0.17593179,2925.0,2923.7,0.00377685]
[1764170683625,2.80687102,2924.5,2923.7,0.00377685]
[1764170683918,0.17102,2924.3,2923.7,0.00377685]
[1764170685622,0.4804,2923.8,2923.7,0.00377685]
[1764170686014,0.65145,2923.8,2923.7,0.00377685]
[1764170686224,0.65147,2923.4,2923.3,0.00513179]
[1764170686421,0.17109,2923.3,2922.0,2.1182793]
[1764170686818,0.17105,2923.8,2922.2,0.27928696]
[1764170687022,0.2188,2924.0,2922.3,0.17114]
[1764170687023,0.17106,2923.7,2922.3,0.17114]
[1764170687225,0.17106,2923.7,2922.5,0.28750896]
[1764170687423,0.17106,2923.7,2922.8,0.00513179]
[1764170687424,0.00513179,2923.4,2922.8,0.00513179]
[1764170688325,0.00513179,2923.4,2923.3,0.4506]
[1764170688821,0.4804,2923.1,2922.8,0.00513179]
[1764170689022,0.4804,2923.1,2923.0,0.7429]
[1764170689023,0.0027232,2923.1,2923.0,0.7429]
[1764170690829,0.00513179,2923.4,2923.3,0.4506]
[1764170691628,0.17104,2924.1,2923.3,0.4506]
[1764170691827,0.17404317,2924.1,2923.3,0.4506]
[1764170692130,0.00300317,2924.1,2923.3,0.4506]
[1764170692524,0.00513179,2924.0,2923.3,0.4506]
[1764170693835,0.00513179,2924.0,2923.9,0.4506]
[1764170694925,0.48553179,2924.0,2923.5,0.2923]
[1764170695633,0.00513179,2924.0,2923.9,0.4506]
[1764170696928,0.00513179,2924.0,2923.5,0.2923]
[1764170700335,0.17617179,2924.0,2923.5,0.2923]
[1764170700532,0.17105,2923.8,2923.5,0.2923]
[1764170700732,0.00513179,2924.0,2923.9,0.4506]
[1764170701341,0.17101,2924.6,2924.0,0.7429]
[1764170701838,1.38207108,2925.0,2924.0,0.7429]
[1764170702028,0.171,2924.7,2924.0,0.7429]
[1764170702230,0.00334999,2924.6,2924.5,0.7429]
[1764170702540,1.21127108,2925.7,2924.6,0.4506]
[1764170702735,2.00071296,2925.7,2924.6,0.4506]
[1764170703034,1.81546781,2925.9,2924.6,0.4506]
[1764170703035,0.78944188,2925.6,2924.6,0.4506]
[1764170703238,1.01334188,2925.5,2924.6,0.4506]
[1764170703442,0.96040188,2925.4,2924.6,0.4506]
[1764170703633,0.17454686,2925.4,2924.6,0.45423993]
[1764170704738,0.00358686,2925.4,2925.3,0.4506]
[1764170705239,0.65136,2925.4,2925.0,0.2923]
[1764170705437,0.4687,2925.1,2924.6,0.00363993]
[1764170706136,0.00299562,2925.1,2925.0,0.4554]
[1764170706329,0.00299562,2925.1,2924.6,0.00363993]
[1764170706330,0.47169562,2925.1,2924.6,0.00363993]
[1764170707039,0.00299562,2925.1,2925.0,0.7255]
[1764170707445,0.47169562,2925.1,2924.6,0.00363993]
[1764170707928,0.00299562,2925.1,2925.0,0.4554]
[1764170708134,0.00299562,2925.1,2925.0,0.7255]
[1764170708542,0.17094,2925.7,2925.0,0.7255]
[1764170708543,1.21127108,2926.1,2925.0,6.89648]
[1764170708731,1.21127108,2926.7,2926.0,0.2701]
[1764170708933,0.78793491,2926.6,2926.1,0.00513179]
[1764170709133,0.78793491,2926.5,2926.1,0.00513179]
[1764170709329,0.17088,2926.8,2926.1,0.00513179]
[1764170709530,0.78804386,2926.7,2926.1,0.00513179]
[1764170709734,0.78804386,2926.6,2926.5,0.4554]
[1764170710337,0.003962,2926.8,2926.5,0.4554]
[1764170710934,0.003962,2926.8,2926.1,0.00513179]
[1764170711138,0.003962,2926.8,2926.7,0.4554]
[1764170711433,0.17081,2928.1,2926.7,0.45907984]
[1764170712337,0.2169,2928.5,2927.0,0.2701]
[1764170712637,0.17074,2929.2,2928.0,0.7255]
[1764170712839,0.4687,2928.4,2928.3,0.00512295]
[1764170713137,2.84497218,2928.8,2928.3,0.00512295]
[1764170713442,2.84908936,2928.8,2928.3,0.00512295]
[1764170713837,0.00411718,2928.8,2928.3,0.00512295]
[1764170714044,0.00411718,2928.8,2928.7,0.4554]
[1764170714240,0.00411718,2928.8,2928.3,0.00512295]
[1764170714746,0.17071,2929.7,2928.7,0.4507]
[1764170714939,3.01564218,2930.4,2928.7,0.4507]
[1764170715445,2.84497218,2929.9,2928.7,0.4507]
[1764170715640,0.22,2929.8,2928.7,0.4507]
[1764170715847,0.22432579,2929.8,2928.7,0.4507]
[1764170716346,0.00432579,2929.8,2928.7,0.4507]
[1764170718151,0.00432579,2929.8,2929.3,0.4507]
[1764170718453,0.4625,2929.4,2929.3,0.0028117]
[1764170718651,0.63322,2929.4,2929.3,0.0028117]
[1764170720542,0.38954,2929.2,2928.3,0.00512295]
[1764170720747,3.23451218,2929.2,2928.3,0.00512295]
[1764170721257,0.17075,2929.0,2928.3,0.00512295]
[1764170721651,0.17076,2928.9,2928.3,0.00783166]
[1764170722170,3.06377218,2929.2,2928.3,0.00783166]
[1764170722359,3.23451218,2929.2,2928.3,0.00783166]
[1764170722654,0.17075,2929.0,2928.3,0.00783166]
[1764170723053,0.17076,2928.9,2928.3,0.00783166]
[1764170723856,3.23451218,2929.2,2928.3,0.00783166]
[1764170724057,0.17077,2928.7,2928.3,0.00783166]
[1764170724259,0.4625,2928.4,2928.3,0.00783166]
[1764170724862,2.84497218,2928.7,2928.3,0.00783166]
[1764170725165,0.2188,2929.2,2928.3,0.45853166]
[1764170725166,0.17075,2929.0,2928.3,0.45853166]
[1764170725370,0.17076,2928.9,2928.3,0.45853166]
[1764170725566,0.17077,2928.7,2928.3,0.00783166]
[1764170725961,0.17074,2929.2,2928.3,0.00783166]
[1764170726269,0.17072,2929.6,2928.3,0.00783166]
[1764170726673,0.17072,2929.5,2928.3,0.00783166]
[1764170727172,0.17075,2929.1,2928.3,0.00783166]
[1764170728361,0.63328,2928.4,2928.3,0.00783166]
[1764170728568,0.1708,2928.1,2927.5,0.2701]
[1764170728763,0.17081,2928.0,2927.5,0.2701]
[1764170728968,0.17081,2927.9,2927.5,0.2701]
[1764170729171,0.17082,2927.8,2926.8,0.2845]
[1764170729371,0.17083,2927.7,2926.8,0.2845]
[1764170729571,0.00509344,2927.5,2927.0,0.00512295]
[1764170730369,0.00509344,2927.5,2927.4,0.7352]
[1764170731475,0.00320098,2927.7,2927.0,0.00512295]
[1764170733575,0.00320098,2927.7,2927.6,0.4507]
[1764170735568,0.17079,2928.3,2927.6,0.4507]
[1764170736079,1.21127108,2928.9,2927.6,0.4507]
[1764170736271,0.95308598,2928.8,2927.6,0.62153]
[1764170736467,0.95309598,2928.7,2927.6,0.4507]
[1764170736668,0.95309598,2928.6,2927.6,0.4507]
[1764170736874,0.78232598,2928.5,2927.6,0.4507]
[1764170737974,0.78232598,2928.4,2927.6,0.4507]
[1764170738178,0.17385794,2928.8,2927.6,0.4507]
[1764170738473,0.17077,2928.7,2927.6,0.4507]
[1764170738778,0.78228608,2928.6,2927.6,0.4507]
[1764170739780,0.00309794,2928.8,2928.7,0.4729]
[1764170740871,1.21127108,2929.4,2928.7,0.4729]
[1764170741077,0.78353803,2929.3,2928.8,0.00512295]
[1764170741273,0.78353803,2929.2,2929.1,0.4729]
[1764170741474,1.25533803,2929.2,2928.8,0.00512295]
[1764170741774,0.4718,2928.9,2928.8,0.00512295]
[1764170741976,0.00415593,2928.9,2928.8,0.00765793]
[1764170742175,0.78769396,2928.9,2928.8,0.00765793]
[1764170742378,0.78769396,2928.9,2928.8,0.48055793]
[1764170742671,1.25949396,2928.9,2928.8,0.00765793]
[1764170743473,0.78769396,2928.9,2928.8,0.48055793]
[1764170743980,1.25949396,2928.9,2928.8,0.00765793]
[1764170744577,1.43024396,2928.9,2928.8,0.00765793]
[1764170744784,1.43024396,2928.9,2928.0,0.2907]
[1764170744981,1.43024396,2928.9,2927.5,0.085]
[1764170744982,0.17078,2928.5,2927.4,0.2845]
[1764170745182,0.78353803,2928.4,2927.4,0.2845]
[1764170745679,1.21127108,2928.8,2928.3,0.4729]
[1764170745878,0.78563411,2928.7,2928.3,0.4729]
[1764170746184,0.78563411,2928.6,2928.3,0.4729]
[1764170746482,0.78563411,2928.5,2928.3,0.4729]
[1764170746684,0.00512295,2928.8,2928.3,0.4729]
[1764170746978,0.78599327,2928.7,2928.3,0.4729]
[1764170747187,0.78599327,2928.6,2928.5,0.7636]
[1764170747683,0.4718,2928.6,2927.6,0.00512295]
[1764170747884,1.25779327,2928.6,2927.6,0.00512295]
[1764170748083,0.78599327,2928.5,2927.6,0.00512295]
[1764170748278,0.78657064,2928.4,2927.6,0.00512295]
[1764170748476,0.00512295,2928.8,2927.6,0.00512295]
[1764170748674,0.78648462,2928.7,2927.6,0.00512295]
[1764170748879,0.78648462,2928.6,2927.6,0.00512295]
[1764170749082,0.78648462,2928.5,2927.6,0.00512295]
[1764170749279,0.78648462,2928.4,2928.3,0.4729]
[1764170749687,0.78648462,2928.4,2928.0,0.2907]
[1764170749887,2.80146418,2928.8,2928.0,0.2907]
[1764170750085,0.78594635,2928.7,2928.0,0.2907]
[1764170750382,0.78594635,2928.6,2928.0,0.2907]
[1764170750683,0.78594635,2928.5,2928.0,0.2907]
[1764170750883,2.80146418,2928.8,2928.0,0.2907]
[1764170751087,0.78579465,2928.7,2928.0,0.2907]
[1764170751385,0.1708,2928.5,2927.6,0.00512295]
[1764170751581,3.41137588,2928.4,2927.6,0.00512295]
[1764170751777,0.95658465,2928.3,2927.6,0.00512295]
[1764170751979,0.4718,2927.7,2927.6,0.00512295]
[1764170752480,0.17085,2927.4,2926.2,1.8259793]
[1764170752681,0.7856454,2927.3,2926.1,1.9968893]
[1764170752980,2.62558123,2927.4,2926.2,1.8259793]
[1764170753177,0.78582413,2927.3,2926.1,1.9968893]
[1764170753382,0.00512295,2927.2,2926.6,0.00512295]
[1764170753884,0.4718,2926.7,2926.6,0.00512295]
[1764170754185,0.47609119,2926.7,2926.6,0.00512295]
[1764170754678,0.00429119,2926.7,2926.6,0.00512295]
[1764170756278,0.00429119,2926.7,2926.6,0.47802295]
[1764170756883,0.00429119,2926.7,2926.6,0.00512295]
[1764170757986,0.00429119,2926.7,2926.6,0.47802295]
[1764170758384,0.00512295,2927.2,2926.6,0.47802295]
[1764170759687,0.00859463,2927.2,2926.6,0.47802295]
[1764170759886,2.63417586,2927.2,2926.6,0.47802295]
[1764170760475,0.00859463,2927.2,2926.6,0.47802295]
[1764170760790,0.00859463,2927.2,2927.1,0.4729]
[1764170760990,3.01639123,2928.0,2927.1,0.4729]
[1764170761181,0.4718,2927.1,2926.6,0.00512295]
[1764170761985,0.48067588,2927.1,2926.6,0.00512295]
[1764170762582,0.00887588,2927.1,2926.6,0.00512295]
[1764170762780,0.4718,2926.7,2926.6,0.00512295]
[1764170763390,0.00887588,2927.1,2926.6,0.00512295]
[1764170764887,0.00887588,2927.1,2927.0,0.7636]
[1764170765985,0.17084,2927.5,2927.0,0.7885]
[1764170766488,2.62558123,2927.6,2927.0,0.7885]
[1764170766693,2.84558123,2928.0,2927.0,0.7885]
[1764170766891,2.62558123,2927.6,2926.6,0.17601295]
[1764170767089,0.2196,2927.5,2926.6,0.00512295]
[1764170767392,2.62558123,2927.2,2926.6,0.00512295]
[1764170769294,0.2196,2927.5,2926.6,0.00512295]
[1764170769495,0.17082,2927.8,2926.6,0.00512295]
[1764170769883,2.84820844,2928.0,2926.6,0.00512295]
[1764170770088,0.00262721,2928.0,2926.7,2.79646123]
[1764170770399,0.00262721,2928.0,2927.9,0.493]
[1764170770696,0.48292721,2928.0,2927.5,0.2955]
[1764170771198,0.00262721,2928.0,2927.9,0.493]
[1764170771497,2.62558123,2928.5,2928.0,0.2955]
[1764170771794,2.79638123,2928.5,2927.5,0.2955]
[1764170772989,2.62558123,2928.5,2927.5,0.2955]
[1764170773291,0.17076,2928.8,2927.5,0.2955]
[1764170773693,0.17076,2928.8,2927.5,0.46633]
[1764170774389,2.84508123,2929.0,2927.5,2.92108123]
[1764170774596,0.17073,2929.3,2927.7,0.17082]
[1764170774796,2.62558123,2929.0,2928.2,0.00512295]
[1764170775889,0.17073,2929.3,2928.2,0.00512295]
[1764170776198,0.2196,2929.5,2928.2,0.00512295]
[1764170776390,0.17071,2929.7,2928.3,2.79636123]
[1764170776586,0.80533937,2929.6,2928.3,2.79636123]
[1764170776796,0.17067,2930.3,2928.8,0.17076]
[1764170777099,2.62558123,2930.2,2928.8,0.83849157]
[1764170777295,0.1708,2930.5,2929.0,0.2955]
[1764170777502,0.80518429,2930.4,2929.2,0.17074]
[1764170777795,0.1708,2930.5,2929.0,0.2955]
[1764170778001,2.62558123,2930.2,2929.0,0.2955]
[1764170778792,2.84508123,2931.0,2929.3,0.17073]
[1764170778987,0.805306,2930.9,2930.0,0.2955]
[1764170779191,0.1708,2930.5,2929.9,0.00512295]
[1764170779594,0.4803,2930.0,2929.9,0.00512295]
[1764170780102,0.1708,2930.5,2929.9,0.00512295]
[1764170780302,2.62558123,2930.6,2929.9,0.00512295]
[1764170780704,0.17065,2930.7,2929.9,0.00512295]
[1764170781005,0.4803,2930.0,2929.9,0.00512295]
[1764170781303,2.62558123,2930.3,2929.9,0.00512295]
[1764170781705,0.4803,2930.0,2929.9,0.00512295]
[1764170784002,0.2195,2931.0,2930.0,0.2955]
[1764170784206,0.39013,2931.0,2930.0,0.2955]
[1764170785090,0.17064,2930.9,2930.0,0.2955]
[1764170785296,2.79622123,2930.9,2930.0,0.2955]
[1764170785705,0.4803,2930.1,2929.9,0.00512295]
[1764170785898,0.4803,2930.0,2929.9,0.00512295]
[1764170786408,2.79638123,2930.5,2929.9,0.00512295]
[1764170786601,0.1708,2930.5,2929.9,0.00512295]
[1764170786802,0.2195,2931.0,2930.0,0.2955]
[1764170787405,0.22,2932.0,2930.6,2.62558123]
[1764170787604,2.79638123,2932.5,2931.0,2.92108123]
[1764170787906,2.79638123,2932.5,2931.5,0.00512295]
[1764170788108,0.1708,2932.5,2931.5,0.30062295]
[1764170788316,0.17053,2932.7,2931.5,0.30062295]
[1764170788610,2.62558123,2932.4,2931.5,0.30062295]
[1764170788909,0.4803,2931.6,2931.5,0.00512295]
[1764170789605,2.62558123,2932.0,2931.5,0.00512295]
[1764170789799,0.4803,2931.6,2931.5,0.00512295]
[1764170790909,0.4803,2931.1,2931.0,0.00339929]
[1764170795008,0.65093,2931.1,2931.0,0.00339929]
[1764170795819,0.4553,2930.9,2930.8,0.00512295]
[1764170796314,0.00339929,2931.1,2930.8,0.49542295]
[1764170796610,0.00339929,2931.1,2930.8,0.49856972]
[1764170798410,0.4553,2930.9,2930.8,0.00826972]
[1764170799114,0.00339929,2931.1,2930.8,0.00826972]
[1764170799517,0.4553,2930.9,2930.8,0.00826972]
[1764170800114,0.00339929,2931.1,2930.8,0.00826972]
[1764170800813,0.4553,2930.9,2930.8,0.00826972]
[1764170801020,3.08088123,2930.9,2930.8,0.00826972]
[1764170801609,3.25152123,2930.9,2930.8,0.00826972]
[1764170801810,0.00339929,2931.1,2930.0,0.2955]
[1764170802115,0.00339929,2931.1,2930.0,2.92108123]
[1764170802422,0.00339929,2931.1,2930.0,3.09177123]
[1764170802915,0.00339929,2931.1,2930.3,0.00512295]
[1764170803520,0.00339929,2931.1,2931.0,0.7864]
[1764170804828,0.17059,2931.7,2931.0,0.7864]
[1764170805122,0.4553,2931.1,2930.5,0.2961]
[1764170805523,0.17061,2931.4,2930.5,0.2961]
[1764170805723,0.00314677,2931.4,2931.3,0.4903]
[1764170805924,1.98603781,2932.1,2931.0,0.2961]
[1764170805925,0.00512295,2931.6,2931.5,0.7864]
[1764170806322,0.17057,2932.1,2931.5,0.7864]
[1764170806519,0.80177853,2932.0,2931.9,0.4903]
[1764170806924,0.17053,2932.7,2931.9,0.4903]
[1764170806925,1.21127108,2932.5,2932.0,0.2961]
[1764170807321,1.98599781,2932.7,2932.0,0.2961]
[1764170807322,1.21127108,2932.7,2932.0,0.2961]
[1764170807629,0.4553,2932.1,2932.0,0.00512295]
[1764170808022,2.62558123,2932.4,2932.0,0.00512295]
[1764170808424,0.17056,2932.3,2932.0,0.00512295]
[1764170808732,0.17056,2932.3,2932.0,0.30122295]
[1764170808926,0.4553,2932.1,2932.0,0.00512295]
[1764170809822,0.17056,2932.3,2932.0,0.00512295]
[1764170810023,4.17939955,2932.7,2932.0,0.30122295]
[1764170810227,4.34992955,2932.7,2932.0,0.30122295]
[1764170810528,1.38180108,2932.7,2932.0,0.30122295]
[1764170810729,0.17053,2932.7,2932.0,0.30122295]
[1764170811125,1.21127108,2932.8,2932.0,0.30122295]
[1764170811524,1.58929108,2933.0,2932.0,0.30122295]
[1764170812528,0.17052,2932.9,2932.0,0.30122295]
[1764170812731,0.17053,2932.8,2932.0,0.30122295]
[1764170813035,1.21127108,2932.7,2932.0,0.00512295]
[1764170813422,1.21127108,2932.6,2932.0,0.00512295]
[1764170813627,0.17055,2932.4,2932.0,0.30122295]
[1764170814034,1.21127108,2932.6,2932.0,0.30122295]
[1764170814235,1.21127108,2932.7,2932.0,0.30122295]
[1764170814822,1.21127108,2932.9,2932.0,0.30122295]
[1764170815032,1.21127108,2933.0,2932.0,0.30122295]
[1764170815237,1.21127108,2933.3,2932.2,0.17056]
[1764170815437,1.21127108,2933.5,2932.3,0.632]
[1764170815735,1.21127108,2933.9,2932.8,0.17053]
[1764170815931,1.21127108,2934.1,2932.8,0.17053]
[1764170816234,1.21127108,2934.4,2933.0,0.2961]
[1764170816632,1.38170108,2934.4,2933.0,0.9391]
[1764170817332,0.17043,2934.4,2933.0,0.9391]
[1764170817533,1.81439125,2935.3,2934.3,2.96812847]
[1764170817834,0.2923,2935.5,2934.5,0.00511412]
[1764170818035,0.2196,2936.5,2934.5,0.00511412]
[1764170818340,0.2923,2937.6,2936.4,2.96812847]
[1764170818539,0.2923,2937.6,2936.5,0.824]
[1764170818738,0.2923,2937.6,2936.4,2.97128606]
[1764170818936,0.2923,2937.6,2936.4,0.00315759]
[1764170819138,0.2923,2937.6,2936.8,0.00511412]
[1764170819339,0.2923,2938.2,2936.8,0.00511412]
[1764170819838,0.5123,2938.2,2936.8,0.00511412]
[1764170820043,0.22,2938.1,2936.8,0.00511412]
[1764170820437,0.2923,2938.2,2936.8,0.00511412]
[1764170820637,0.22,2938.0,2936.8,0.00511412]
[1764170820834,0.2923,2938.2,2936.8,0.00511412]
[1764170821331,0.2923,2938.2,2937.2,2.96812847]
[1764170821530,0.2923,2938.2,2936.8,0.00511412]
[1764170822139,0.2923,2938.2,2936.9,0.948]
[1764170822535,0.2923,2938.2,2937.2,2.96812847]
[1764170824338,0.2923,2938.2,2937.0,2.96812847]
[1764170824836,0.2923,2938.2,2937.1,0.917]
[1764170825633,0.22,2938.1,2936.8,0.00511412]
[1764170825853,0.2923,2938.2,2936.8,0.00511412]
[1764170826139,0.22,2938.1,2936.8,0.00511412]
[1764170826643,0.22,2937.5,2936.8,0.00511412]
[1764170827051,0.2899,2937.6,2936.8,0.00511412]
[1764170827052,0.22,2937.2,2936.8,0.00511412]
[1764170827347,0.2899,2937.6,2936.8,0.00511412]
[1764170827742,0.2899,2937.0,2936.8,0.00511412]
[1764170828149,0.22,2936.9,2936.8,0.00511412]
[1764170828446,0.4842,2936.9,2936.8,0.00511412]
[1764170828650,0.22,2936.9,2936.8,0.00511412]
[1764170828849,0.7042,2936.9,2936.8,0.00511412]
[1764170829151,0.22,2936.9,2936.8,0.00511412]
[1764170829743,0.2899,2937.6,2936.8,6.00511412]
[1764170829945,0.5099,2937.6,2936.8,0.00511412]
[1764170830146,0.22,2937.5,2936.8,2.25911412]
[1764170830345,0.2899,2937.6,2936.8,2.25911412]
[1764170830842,0.5099,2937.6,2936.8,2.25911412]
[1764170831038,0.5099,2937.6,2936.8,0.00511412]
[1764170831039,0.2899,2937.0,2936.8,0.00511412]
[1764170831446,0.2899,2937.6,2936.8,2.97324259]
[1764170831655,0.22,2937.5,2936.8,2.97324259]
[1764170831949,0.7042,2936.9,2936.8,0.00511412]
[1764170832149,0.4842,2936.5,2936.4,0.00315759]
[1764170832350,0.22,2936.5,2936.4,0.00315759]
[1764170833262,0.22,2936.3,2935.5,0.657]
[1764170833548,0.2899,2936.4,2935.5,0.657]
[1764170833549,0.22,2935.7,2935.5,0.657]
[1764170834058,0.22,2935.6,2935.5,0.657]
[1764170834357,0.00315759,2935.6,2935.5,0.65965655]
[1764170834558,0.2899,2936.4,2935.5,0.65965655]
[1764170834747,0.22,2936.3,2935.5,0.65965655]
[1764170834944,0.22,2936.2,2935.5,0.65965655]
[1764170835457,0.22,2936.1,2935.5,0.65965655]
[1764170835643,0.22,2936.0,2935.5,0.65965655]
[1764170835951,0.22,2936.1,2935.5,0.65965655]
[1764170836253,0.2899,2936.4,2935.5,0.00265655]
[1764170836254,0.2899,2935.8,2935.5,0.00265655]
[1764170836442,0.22,2935.7,2935.5,0.00265655]
[1764170836643,0.22,2935.6,2935.5,0.00265655]
[1764170838248,0.22265655,2935.6,2935.3,0.00511412]
[1764170838458,0.22,2935.4,2934.3,0.17044]
[1764170838758,0.22,2935.5,2934.3,0.17044]
[1764170838953,0.22,2935.5,2934.4,0.17043]
[1764170839161,0.22,2935.5,2934.4,0.17378578]
[1764170839456,0.00511412,2935.2,2934.7,0.00511412]
[1764170839851,0.00265655,2935.6,2934.7,2.97324259]
[1764170840158,0.2899,2937.0,2935.5,0.2584]
[1764170840356,0.22,2936.1,2935.5,0.2584]
[1764170840867,0.22,2936.0,2935.5,0.2584]
[1764170841260,0.00511412,2936.1,2935.5,0.2584]
[1764170842448,0.17029,2936.9,2935.5,0.2584]
[1764170842752,0.17029,2936.9,2935.7,2.96812847]
[1764170843058,0.17029,2936.9,2935.5,0.17037]
[1764170843466,0.00508472,2936.2,2935.5,0.17037]
[1764170844054,0.2899,2937.0,2935.8,0.17035]
[1764170844461,0.2899,2937.0,2935.7,2.96812847]
[1764170844462,0.2899,2937.0,2935.9,0.17035]
[1764170845151,0.2899,2937.0,2936.1,0.17033]
[1764170845360,0.2899,2937.0,2936.3,0.00511412]
[1764170845969,0.2899,2937.0,2936.3,1.39111412]
[1764170846763,0.2899,2937.0,2936.3,0.00511412]
[1764170847359,0.2899,2937.0,2936.7,0.9041473]
[1764170847660,0.2899,2937.0,2936.7,0.00250987]
[1764170847661,0.4842,2936.8,2936.7,0.00250987]
[1764170848256,0.4842,2936.6,2936.5,0.9041473]
[1764170848465,0.7741,2936.4,2936.3,0.90926142]
[1764170848665,0.36521167,2936.4,2936.3,0.00511412]
[1764170848864,0.36521167,2936.4,2936.3,0.90926142]
[1764170849052,0.36521167,2936.4,2936.3,0.00511412]
[1764170849255,0.36772154,2936.4,2936.3,0.00887292]
[1764170849765,0.00250987,2936.4,2936.3,0.48167292]
[1764170849955,0.2899,2937.0,2936.3,1.69176422]
[1764170850156,0.2899,2937.0,2936.5,0.91444204]
[1764170852058,0.46015,2937.6,2936.5,0.91444204]
[1764170852460,0.46015,2937.6,2936.6,0.91444204]
[1764170852862,0.46015,2937.6,2936.5,0.91444204]
[1764170853063,0.2899,2937.6,2936.6,0.91444204]
[1764170853265,0.2899,2937.6,2936.7,0.91444204]
[1764170853961,0.2899,2937.6,2936.6,0.91444204]
[1764170854763,0.2899,2937.6,2936.7,0.91444204]
[1764170854959,0.2899,2937.6,2937.0,1.20214204]
[1764170855166,0.2899,2938.2,2937.0,1.20214204]
[1764170855367,0.2899,2938.2,2937.1,2.96812847]
[1764170855664,0.2899,2938.2,2937.2,1.08471204]
[1764170856265,0.2899,2938.2,2937.2,0.91444204]
[1764170856467,0.2899,2938.2,2937.1,0.91444204]
[1764170856855,0.2899,2938.2,2937.2,0.91444204]
[1764170857060,0.2899,2938.2,2937.1,0.91444204]
[1764170857269,0.2899,2938.2,2937.0,0.91444204]
[1764170857470,0.2899,2938.2,2937.1,0.91444204]
[1764170857963,0.2899,2938.2,2937.5,0.1439]
[1764170858568,0.2899,2938.2,2937.5,0.31415]
[1764170858870,0.2899,2938.8,2937.8,0.17023]
[1764170859066,1.50885673,2939.5,2938.0,4.09567576]
[1764170859274,0.2927,2939.5,2938.1,0.91444204]
[1764170859471,0.2927,2939.5,2938.2,0.17021]
[1764170859866,0.2927,2939.5,2938.3,0.1702]
[1764170860168,0.2927,2939.5,2938.2,0.91444204]
[1764170860371,0.2927,2939.5,2938.3,0.1702]
[1764170860574,0.2927,2939.5,2938.2,0.91444204]
[1764170861065,0.2927,2939.5,2938.1,0.91444204]
[1764170861066,0.4925,2938.2,2938.1,0.91444204]
[1764170861268,0.46284,2939.5,2938.0,0.00510525]
[1764170862268,0.46284,2939.5,2938.2,0.2877]
[1764170862473,0.2927,2939.5,2938.3,0.1702]
[1764170862874,0.2927,2939.5,2938.6,2.96812847]
[1764170863168,0.2927,2939.5,2938.6,2.97227571]
[1764170863377,0.2927,2939.5,2938.6,0.00414724]
[1764170863868,0.4925,2938.7,2938.6,0.00414724]
[1764170865660,0.2927,2939.5,2938.6,0.00414724]
[1764170867675,0.40178,2940.0,2938.6,0.00414724]
[1764170867676,0.40178,2940.0,2938.8,0.2877]
[1764170868575,0.40178,2940.0,2938.9,0.17017]
[1764170868875,0.40178,2940.0,2938.8,0.2877]
[1764170869673,0.40178,2940.0,2938.6,0.00414724]
[1764170870074,0.57189,2940.0,2938.6,0.00414724]
[1764170870371,0.4925,2938.7,2938.6,0.00414724]
[1764170871368,0.2927,2939.4,2938.6,0.00414724]
[1764170871772,1.38624673,2940.4,2938.9,2.60652246]
[1764170871970,0.17009,2940.4,2938.9,2.60652246]
[1764170873272,0.17011,2940.1,2938.6,0.00414724]
[1764170874276,0.17011,2940.1,2938.9,2.60652246]
[1764170874876,0.4925,2938.7,2938.6,0.00414724]
[1764170877982,0.2927,2939.4,2938.6,3.0748697]
[1764170878576,0.57189,2940.0,2938.6,0.63853724]
[1764170878577,0.40178,2940.0,2938.6,0.63853724]
[1764170878780,0.40178,2940.0,2938.6,0.46834724]
[1764170879179,0.57189,2940.0,2938.6,0.46834724]
[1764170879379,0.4925,2938.7,2938.6,0.00414724]
[1764170879580,0.2927,2939.4,2938.6,0.00414724]
[1764170880383,0.4925,2938.7,2938.6,0.00414724]
[1764170881477,0.2927,2938.8,2938.6,0.00414724]
[1764170881683,0.2927,2939.4,2938.6,0.00414724]
[1764170881884,0.40178,2940.0,2939.1,2.60652246]
[1764170882088,0.40178,2940.0,2938.6,1.21423854]
[1764170882591,0.17013,2939.7,2938.6,0.00414724]
[1764170882985,0.40178,2940.0,2938.6,2.6106697]
[1764170883290,0.40178,2940.0,2938.8,0.45788]
[1764170883676,0.40178,2940.0,2939.0,2.77668246]
[1764170883877,0.10908,2940.0,2939.4,2.89422246]
[1764170884082,0.2927,2940.5,2939.4,2.89422246]
[1764170884283,0.4925,2939.8,2939.7,0.00510525]
[1764170884485,0.2927,2940.5,2939.7,0.00510525]
[1764170885189,0.4925,2939.8,2939.7,0.00510525]
[1764170886782,0.4925,2939.8,2938.9,1.2100913]
[1764170887286,0.4925,2939.8,2939.0,1.2100913]
[1764170887689,0.4924,2939.2,2939.1,0.00510525]
[1764170887991,0.08392299,2939.2,2939.1,0.00510525]
[1764170888291,0.08392299,2939.2,2939.1,1.21519655]
[1764170888491,0.26117566,2940.0,2939.1,1.21519655]
[1764170888788,0.00507566,2940.0,2939.2,1.2100913]
[1764170888993,0.00507566,2940.0,2939.4,0.2901]
[1764170889291,0.00507566,2940.0,2939.9,0.4894]
[1764170890595,0.00507566,2940.0,2939.6,3.81661376]
[1764170891794,0.00507566,2940.0,2939.6,1.2100913]
[1764170892594,1.21615673,2940.9,2940.0,0.2901]
[1764170892799,1.21615673,2941.3,2940.4,2.60652246]
[1764170892987,1.21615673,2941.3,2940.0,4.10671376]
[1764170893187,0.4924,2940.1,2939.9,1.2100913]
[1764170893392,0.17006,2940.9,2940.0,0.2901]
[1764170893881,1.21615673,2941.1,2940.0,0.2901]
[1764170894385,0.17005,2941.0,2939.7,1.2100913]
[1764170894686,0.4924,2939.8,2939.6,1.2100913]
[1764170894894,0.4924,2939.6,2939.4,1.2100913]
[1764170895092,0.4924,2939.5,2939.1,0.00510525]
[1764170895482,1.21615673,2940.3,2939.4,0.7795]